Cogmind - Beta 15 @@@ ROGUE MODE // 2025.05.26 @ 13:59:36 Player: erfael Result: Destroyed by G-34 Mercenary with Small Laser Performance ------------- Evolutions (0) 0 Regions Visited (2) 400 Robots Destroyed (11) 55 Value Destroyed (354) 354 Prototype IDs (0) 0 Alien Tech Used (0) 0 Bonus (0) 0 TOTAL SCORE: 809 Bonus ------- None Cogmind --------- Core Integrity 0/250 Matter 283/300 Energy 100/100 System Corruption 1% Temperature Cool (15) Movement Core (150) Ox2 Location -10/Mines Parts ------- > --- POWER (1) -------- (None) > --- PROPULSION (2) --- (None) > --- UTILITY (2) ------ Small Storage Unit Targeting Computer > --- WEAPON (2) ------- Mining Claw > --- INVENTORY (8) ---- Ion Engine Wheel ECM Suite Core Shielding Peak State ------------ > --- POWER ------------ Light Ion Engine > --- PROPULSION ------- Light Treads Light Treads > --- UTILITY ---------- Small Storage Unit ECM Suite > --- WEAPON ----------- Assault Rifle Assault Rifle > --- INVENTORY -------- Light Ion Engine Wheel Wheel [Rating: 7] Favorites ----------- Power Light Ion Engine Engine Light Ion Engine Propulsion Light Treads Treads Light Treads Wheel Wheel Utility Small Storage Unit Device ECM Suite Storage Small Storage Unit Processor Targeting Computer Weapon Assault Rifle Energy Gun Small Laser Ballistic Gun Assault Rifle Slashing Weapon Mining Claw Build | -11 -10 -10 ------- Run | Yrd Mat Min Slots Evolved . | . . . Power . | . . . Propulsion . | . . . Utility . | . . . Weapon . | . . . Parts Attached 13 | 7 5 1 Power 2 | 1 1 . Engine 2 | 1 1 . Core . | . . . Reactor . | . . . Propulsion 4 | 3 1 . Treads 2 | 2 . . Leg . | . . . Wheel 2 | 1 1 . Hover . | . . . Flight . | . . . Utility 3 | 1 2 . Device 1 | . 1 . Storage 1 | 1 . . Processor 1 | . 1 . Hackware . | . . . Protection . | . . . Artifact . | . . . Weapon 4 | 2 1 1 Energy Gun 1 | . 1 . Energy Cannon . | . . . Ballistic Gun 2 | 2 . . Ballistic Cannon . | . . . Launcher . | . . . Special Weapon . | . . . Impact Weapon . | . . . Slashing Weapon 1 | . . 1 Piercing Weapon . | . . . Special Melee Weapon . | . . . Unidentified Prototypes . | . . . Parts Lost 7 | . 3 4 Power 2 | . 1 1 Propulsion 2 | . . 2 Utility . | . . . Weapon 3 | . 2 1 Highest Loss Streak 4 | . 2 4 To Critical Strikes . | . . . Average Backups 5 | 3 5 4 Power 1 | . 1 1 Propulsion 1 | 2 1 1 Utility 1 | . 1 2 Weapon 1 | . 1 . Tool/Special . | . . . Unused Backups 3 | . 1 2 Power 1 | . . 1 Propulsion . | . . . Utility 1 | . . 1 Weapon 1 | . 1 . Tool/Special . | . . . Average Slot Usage (%) 93 | . 95 82 Engine 13 | . 13 13 Treads 24 | . 26 12 Wheel 2 | . . 14 Storage 14 | . 14 14 Processor 12 | . 12 14 Energy Gun 3 | . 1 12 Ballistic Gun 20 | . 24 . Peak Build Rating 7 | 6 7 6 Average Rating 6 | 3 6 5 On Entrance 4 | . 6 6 Naked Turns . | . . . Heaviest Build 14 | 12 14 10 Greatest Support 40 | 40 40 20 Greatest Overweight (x) 3 | . 2 3 Average Overweight (x) . | . . . Largest Inventory Capacity 8 | 8 8 8 Average Capacity 7 | 6 8 8 Most Carried 8 | 5 8 5 Average Carried 5 | 3 5 4 Final Capacity 8 | 8 8 8 Final Carried 5 | 3 5 4 Class Distribution -------------------- 100% | Mutant Dominant Class ---------------- Mutant | -10/Materials Mutant | -10/Mines Resources | -11 -10 -10 ----------- Run | Yrd Mat Min Matter Collected 488 | 203 285 . Remotely . | . . . Salvage Created 400 | . 400 . Parts 22 | . 22 . Haulers Intercepted . | . . . Recyclers Shooed . | . . . Parts Field Recycled . | . . . Retrieved Matter . | . . . Parts Self-Destructed . | . . . Prevented . | . . . Kills | -11 -10 -10 ------- Run | Yrd Mat Min Combat Hostiles Destroyed 10 | . 10 . Guns 10 | . 10 . Classes Destroyed 3 | . 3 . Watcher 1 | . 1 . Swarmer 2 | . 2 . Grunt 8 | . 8 . Best Kill Streak 3 | . 3 . Combat Bots Only 2 | . 2 . Max Kills in Single Turn 1 | . 1 . Gunslinging . | . . . Exploded . | . . . Melee . | . . . Uniques/NPCs Destroyed . | . . . Combat | -11 -10 -10 -------- Run | Yrd Mat Min Hostile Shots Fired 111 | . 72 39 Missed 37 | . 28 9 Hits 74 | . 44 30 Projectile 74 | . 44 30 Critical Strikes 4 | . 3 1 Part Disruptions 1 | . 1 . Damage Taken 989 | . 617 372 Core 251 | . 123 128 Absorbed by Shields . | . . . Core Remaining (%) 100 | 100 . . Volleys Fired 50 | . 42 8 Largest 2 | . 2 1 Hottest 60 | . 60 40 Shots Fired 75 | . 67 8 Gun 75 | . 67 8 Cannon . | . . . Launcher . | . . . Special . | . . . Kinetic 65 | . 65 . Thermal 10 | . 2 8 Explosive . | . . . Electromagnetic . | . . . Robot Hit Streak 14 | . 14 5 Robot Miss Streak 2 | . 2 1 Penetration Max . | . . . Secondary Targets 1 | . 1 . Max Gunslinging Chain 1 | . 1 . Shots Hit Robots 53 | . 47 6 Core Hits 23 | . 21 2 Critical Kills . | . . . Critical Parts Destroyed . | . . . Critical Strikes . | . . . Melee Attacks 4 | . . 4 Impact . | . . . Slashing 4 | . . 4 Piercing . | . . . Sneak Attacks . | . . . Combat Hostiles . | . . . Follow-up Attacks . | . . . Damage Inflicted 657 | . 578 79 Guns 631 | . 576 55 Cannons . | . . . Explosions . | . . . Melee 24 | . . 24 Ramming 2 | . 2 . Kinetic 554 | . 554 . Thermal 77 | . 22 55 Explosive . | . . . Electromagnetic . | . . . Impact . | . . . Slashing 24 | . . 24 Piercing . | . . . Highest Corruption 1 | . 1 1 Average Corruption 1 | . 1 1 Corruption Purged . | . . . Corruption Blocked . | . . . Effects 5 | . 3 2 Message Errors 1 | . 1 . Matter Fused 1 | . . 1 Energy Discharges 2 | . 1 1 Data Loss (minor) 1 | . 1 . Overload Shots . | . . . Overflow Damage . | . . . Projectiles . | . . . Explosions . | . . . Melee . | . . . Knockbacks . | . . . Impact . | . . . Kinetic . | . . . Secondary . | . . . Self-Inflicted Damage 86 | . 86 . Shots 2 | . 2 . Rammed 3 | 1 2 . Targets Rammed 3 | 1 2 . Kicked . | . . . Crushed . | . . . Highest Temperature 93 | . 33 93 Average Temperature 29 | . 12 44 Received Heat Transfer 561 | . 321 240 Siege Activations . | . . . Martial Activations . | . . . Shielding Activations . | . . . Robots Disrupted . | . . . Combat Hostiles . | . . . Robots Corrupted . | . . . Combat Hostiles . | . . . Parts Fried . | . . . Impact Corruptions . | . . . Robots Melted . | . . . Combat Hostiles . | . . . Parts Melted 1 | . 1 . Heat Transferred 175 | . 50 125 Parts Sabotaged . | . . . Parts Stolen . | . . . Parts Stripped . | . . . Power Chain Reactions . | . . . Alert | -11 -10 -10 ------- Run | Yrd Mat Min Maximum Alert Level . | . . . Low Security (%) 100 | 100 100 100 Level 1 . | . . . Level 2 . | . . . Level 3 . | . . . Level 4 . | . . . Level 5 . | . . . High Security . | . . . Max Security . | . . . Peak Influence 135 | . 135 41 Initial 41 | . . 41 Average 34 | . 42 13 Influence Increases 334 | . 319 15 Destroy 0b10 Robot/C 200 | . 200 . Destroy 0b10 Robot/NC 5 | . 5 . Destroy Leader 52 | . 52 . Disable Machine 30 | . 30 . Destroy Structure 2 | . 2 . Lose Combat Pursuer 45 | . 30 15 Influence Decreases 334 | . 212 122 Entered New Map 66 | . . 66 Time Decay 233 | . 182 51 Lost Part 35 | . 30 5 Squads Dispatched 3 | . 3 . Investigation 1 | . 1 . Extermination . | . . . Reinforcement 2 | . 2 . Assault . | . . . Garrison . | . . . Intercept . | . . . Searches Triggered . | . . . Construction Impeded . | . . . Haulers Reinforced . | . . . Active Scanning Responses . | . . . Cargo Convoy Interrupts . | . . . Stealth | -11 -10 -10 --------- Run | Yrd Mat Min Distress Signals . | . . . Communications Jammed . | . . . Distress Signals . | . . . Times Spotted 21 | . 18 3 Peak Tracking Total 6 | . 6 2 Tactical Retreats 3 | . 2 1 Traps | -11 -10 -10 ------- Run | Yrd Mat Min Traps Triggered 3 | . 3 . Indirectly . | . . . Trap Hack Attempts . | . . . Triggered . | . . . Disarmed . | . . . Reprogrammed . | . . . Reused . | . . . Traps Extracted . | . . . Installed . | . . . Triggered . | . . . Machines | -11 -10 -10 ---------- Run | Yrd Mat Min Machines Disabled 2 | . 2 . Max in Single Turn 2 | . 2 . Machines Repaired . | . . . Machines Dismantled . | . . . Machines Sabotaged . | . . . Overloaded Fab Kills . | . . . Hacking | -11 -10 -10 --------- Run | Yrd Mat Min Machines Accessed . | . . . Terminals . | . . . Fabricators . | . . . Repair Stations . | . . . Recycling Units . | . . . Scanalyzers . | . . . Garrison Access . | . . . Total Hacks . | . . . Successful . | . . . Failed . | . . . Catastrophic . | . . . Database Lockouts . | . . . Manual . | . . . Terminals . | . . . Fabricators . | . . . Repair Stations . | . . . Recycling Units . | . . . Scanalyzers . | . . . Garrison Access . | . . . Terminal Hacks . | . . . Fabricator Hacks . | . . . Repair Station Hacks . | . . . Recycling Unit Hacks . | . . . Scanalyzer . | . . . Garrison Access Hacks . | . . . Unauthorized Hacks . | . . . Terminals . | . . . Fabricators . | . . . Repair Stations . | . . . Recycling Units . | . . . Scanalyzers . | . . . Garrison Access . | . . . Data Cores Recovered . | . . . Used . | . . . Hacking Detections . | . . . Full Trace Events . | . . . Feedback Events . | . . . Feedback Blocked . | . . . Robot Schematics Acquired . | . . . Robots Built . | . . . Authchips . | . . . Time . | . . . Total Robot Build Rating . | . . . Part Schematics Acquired . | . . . Parts Built . | . . . Authchips . | . . . Time . | . . . Total Part Build Rating . | . . . Parts Repaired . | . . . Time . | . . . Parts Recycled . | . . . Recycled Matter . | . . . Retrieved Matter . | . . . Retrieved Components . | . . . Parts Scanalyzed . | . . . Part Schematics Acquired . | . . . Parts Damaged . | . . . Bothacking | -11 -10 -10 ------------ Run | Yrd Mat Min Used RIF Installer . | . . . Robots Hacked . | . . . Non-combat . | . . . Combat . | . . . Robot Hacks Applied . | . . . Relay Couplers Released . | . . . Fabnet Peak Effective % . | . . . Robots Rewired . | . . . Allies Hacked . | . . . Hacks Repelled . | . . . Allies | -11 -10 -10 -------- Run | Yrd Mat Min Total Allies . | . . . Largest Group . | . . . Highest-Rated Group . | . . . Highest-Rated Ally . | . . . Total Orders . | . . . Ally Attacks . | . . . Total Damage . | . . . Kills . | . . . Allies Corrupted . | . . . Allies Melted . | . . . Intel | -11 -10 -10 ------- Run | Yrd Mat Min Active Infowar (turns) 61 | . 61 . ECM 61 | . 61 . Robot Analysis Total . | . . . Derelict Logs Recovered . | . . . Drone Launches . | . . . Drone Recoveries . | . . . Exploration | -11 -10 -10 ------------- Run | Yrd Mat Min Turns Passed 1084 | 93 821 170 Spaces Moved 572 | 58 426 88 Core 26 | 15 6 5 Treads 546 | 43 420 83 Legs . | . . . Wheels . | . . . Hover . | . . . Flight . | . . . Fastest Speed 50 | 50 150 150 Average Speed 157 | 131 159 160 Slowest Speed 200 | 160 160 200 Overloaded Moves . | . . . Propulsion Burnouts . | . . . Robots Hopped . | . . . Potential Cave-ins . | . . . Cave-ins Triggered . | . . . Exploration Rate (%) 32 | 4 66 28 Regions Visited 2 Branch Regions 1 Pre-discovered Areas . | . . . Known Exits Taken . | . . . Unknown Exits Taken 2 | 1 1 . Scrap Searched . | . . . Spaces Dug . | . . . Terrain Destroyed . | . . . Melee . | . . . Projectile . | . . . AOE . | . . . Terrain Rammed . | . . . Walls Destroyed . | . . . Machines Disabled . | . . . Actions | -11 -10 -10 --------- Run | Yrd Mat Min Total 676 | 75 500 101 Wait 15 | . 15 . Move 570 | 57 425 88 Hop . | . . . Pick Up 17 | 9 8 . Fast Attach . | . . . Attach 14 | 7 6 1 Detach 2 | 1 1 . Swap . | . . . Drop 1 | . 1 . Fire 50 | . 42 8 Melee 4 | . . 4 Ram . | . . . Kick . | . . . Crush 3 | 1 2 . Escape Stasis . | . . . Rewire . | . . . Trap . | . . . Miscellaneous . | . . . Route ------- -11/Scrapyard -10/Materials (discovered 3 exits: [*Mat x2] / [*Min]) -10/Mines (discovered 1 exit: [*Mat]) History --------- Turn | Location | Event 10 | -11/Scrapyard | Discovered new exit (range 15) 94 | -11/Scrapyard | Entered Materials 198 | -10/Materials | Discovered new exit (range 8) 305 | -10/Materials | Build established: Mutant 425 | -10/Materials | Discovered new exit (range 5) 855 | -10/Materials | Discovered new exit (range 13) 915 | -10/Materials | Entered Mines 1016 | -10/Mines | Discovered new exit (range 5) 1053 | -10/Mines | Core integrity fell below 50% 1082 | -10/Mines | Core integrity fell below 20% 1085 | -10/Mines | Destroyed by G-34 Mercenary with Small Laser Last Messages --------------- 00871_ U-05 Engineer lays Concrete. 00877_ Acquired Lgt. Treads. 00897_ R-06 Scavenger collects Lgt. Treads. LOCATION=UNKNOWN GOAL=ESCAPE 00937_ System corrupted: Energy discharge (-50). 01005_ K-01 Serf collects debris. 01007_ System corrupted: Matter fused (-7). 01008_ K-01 Serf collects debris. 01016_ EXIT=FOUND 01038_ K-01 Serf collects debris. 01062_ Sml. Laser destroyed. 01065_ K-01 Serf collects debris. 01065_ Lgt. Treads destroyed. 01068_ K-01 Serf collects debris. 01077_ Lgt. Ion Engine destroyed. 01079_ K-01 Serf collects debris. 01079_ Critical hit (Burn: +37). 01081_ Wheel destroyed. 01083_ K-01 Serf collects debris. Map ----- +----------------------------------------------------+ | ?????????????????????????????????????????????????? | | ?????????????????????????????????????????????????? | | ?????????????????????????????????????????????????? | | ?????????????????????????????????????????????????? | | ?????????????????????????????????????????????????? | | ?????????????????????????????????????????????????? | | ?????????????????????????????????????????????????? | | ?????????????????????????????????????????????????? | | ????????????????????????????####?????????????????? | | ??????????????????????????? ??????????????????? | | ??????????????????????????? """??????????????????? | | ?????????????????????????? """#?????????????????? | | ???????????????????#????? """#?????????????????? | | ?????????????????? #???? #?????????????????? | | ####?????????????? ##### < #?????????????????? | | # ##????????????? # #?????????????????? | | #????????????? # #?????????????????? | | ##???????????? # ## #?????????????????? | | ##??????????? # ##########?????????????????? | | ##?????????? # #???????????????????????? | | ########### # ## #???????????????????????? | | # ## #???????????????????????? | | # ## #???????????????????????? | | ########### ## ## #???????????????????????? | | ##?????????# ## ##??????????????????????? | | # ##??????????# @##?????????????????????? | | # ##???????????##### ###??#######??????????? | | # #????????????????## ### ##?????????? | | # #?????????????????## g #?????????? | | # #??????????????????#### #????????? | | # ######????????????????## g #????????? | | #?????????????????## ##????????? | | # #??????????????????## #?????????? | | ###### #???????????????????## #?????????? | | ????## ###??????????????????## k #?????????? | | ???## ##??????????????????## #?????????? | | ???# ####?????????????????# ##?????????? | | ???# ##????????????????? #??????????? | | ???## #????????????????? ??????????? | | ????## #????????????????? ?????????? | | ?????## #???????????????? ### ????????? | | ??????#### #???????????????? ##????????????? | | ??????????# #?????????????? #?????????????? | | ??????????? ## #?????????????????????????????? | | ???????????? ##?? ????????????????????????????? | | ???????????? ##??????#???????????????????????????? | | ?????????????#???????????????????????????????????? | | ?????????????????????????????????????????????????? | | ?????????????????????????????????????????????????? | | ?????????????????????????????????????????????????? | +----------------------------------------------------+ Best States ------------- Heat Dissipation 25 Energy Generation 10 Energy Capacity 125 Matter Stores 300 Matter Capacity 300 Sight Range 16 Terrain Scan Density 10 ECM Strength 1 Evasion (%) 50 Targeting Accuracy 5 Recoil Reduction 2 Item Schematics ----------------- None Robot Schematics ------------------ None Fabricated ------------ Nothing Repaired ---------- Nothing Alien Tech Used ----------------- None Achievements -------------- None Challenges ------------ None Game ------ Seed PartitionDerelictPod Manual? 0 Play Time 00:14:25 Cumulative 4.6 hours Start 2025.05.24 @ 22:33:19 End 2025.05.26 @ 13:59:36 Sessions 3 Manual Loads 0 Difficulty Rogue Special Mode None Game No. 9 Rogue 9 Adventurer 0 Explorer 0 Win Type - Total 0 Types 0/0/0/0/0/0/0/0/0/0 Lore% 2 Gallery% 6 Achievement% 7 Wizard Run 0 Options --------- Layout 0 ASCII 0 Keyboard 1 Movement Numpad Keybinds 0 Fullscreen 1 Font 18/SmallcapsGlow Map View 76x50 Zoom Use 0% Tactical HUD 1 Map Filters NONE Filters NONE Steam 1 RUN: e0dc8817-7c43-44ad-94ed-6caf3ddce58e